bitfinex-derivatives/quotes_ETHF0:USTF0_20251204
["timestamp","ask_amount","ask_price","bid_price","bid_amount"]
[1764844916722,6.0875969,3193.5,3193.4,0.00317523]
[1764844917125,4.6497,3193.5,3193.4,1.45507523]
[1764844920524,3.9144,3193.5,3193.4,1.45507523]
[1764844921130,3.2078,3193.5,3193.4,1.61163523]
[1764844924531,1.4378969,3194.0,3193.5,0.4526]
[1764844924731,2.25117218,3193.9,3193.8,0.7128]
[1764844924933,1.433,3193.6,3193.5,1.8916]
[1764844926035,0.7147,3193.6,3193.5,1.8916]
[1764844927237,1.433,3193.6,3193.5,1.8916]
[1764844929737,3.9225,3193.9,3193.8,0.7128]
[1764844930039,5.80524492,3193.9,3193.8,0.7128]
[1764844931441,5.80524492,3193.9,3193.8,1.439]
[1764844931647,3.2078,3193.9,3193.8,1.59554]
[1764844933739,0.00238253,3194.2,3194.1,1.59552]
[1764844934242,1.43538253,3194.2,3194.1,1.59552]
[1764844936338,0.00238253,3194.2,3194.1,1.59552]
[1764844937142,0.71708253,3194.2,3194.1,1.59552]
[1764844937744,0.00238253,3194.2,3194.1,1.59552]
[1764844938852,0.71708253,3194.2,3194.1,1.59552]
[1764844939647,0.00238253,3194.2,3194.1,1.59552]
[1764844945448,3.2124916,3194.7,3194.6,1.5955]
[1764844946153,3.9271916,3194.7,3194.6,1.5955]
[1764844946346,4.64841438,3194.7,3194.6,1.5955]
[1764844946545,2.92020952,3194.7,3194.6,1.5955]
[1764844946747,1.433,3195.1,3195.0,2.04808]
[1764844947142,40.8,3195.4,3195.3,0.7128]
[1764844947860,40.80318635,3195.4,3195.3,0.7128]
[1764844951961,40.80318635,3195.4,3195.3,1.439]
[1764844953063,40.80318635,3195.4,3195.3,0.7128]
[1764844953359,40.80318635,3195.4,3195.3,1.439]
[1764844953763,40.80318635,3195.4,3195.3,0.7128]
[1764844954152,1.4267,3195.2,3195.1,0.91567]
[1764844954459,1.4267,3195.2,3195.1,1.66027]
[1764844956761,1.4267,3195.2,3195.1,0.91567]
[1764844956970,1.4267,3195.2,3195.1,0.15647]
[1764844957262,1.4267,3195.2,3195.1,1.66027]
[1764844959465,1.4267,3195.2,3195.1,0.91567]
[1764844959760,1.4267,3195.2,3195.1,1.65917]
[1764844960768,0.7068,3195.2,3195.1,1.65917]
[1764844961068,1.4786,3195.2,3195.1,1.65917]
[1764844961563,40.80318635,3195.4,3195.3,1.61196]
[1764844962863,0.00318635,3195.4,3195.3,1.61196]
[1764844963957,0.77128635,3195.4,3195.3,1.61196]
[1764844964873,0.00318635,3195.4,3195.3,1.61196]
[1764844965168,0.77128635,3195.4,3195.3,1.61196]
[1764844968269,1.58740043,3195.4,3195.3,1.61196]
[1764844968770,1.58740042,3195.4,3195.3,1.61196]
[1764844970270,1.93445117,3195.4,3195.3,1.61196]
[1764844973466,2.70625117,3195.4,3195.3,1.61196]
[1764844976376,1.93445117,3195.4,3195.3,1.61196]
[1764844976673,2.70625117,3195.4,3195.3,1.61196]
[1764844979577,2.70625117,3195.4,3195.3,0.15646]
[1764844980275,2.70625117,3195.4,3195.3,0.86846]
[1764844980477,2.70625117,3195.4,3195.3,1.61196]
[1764844981278,2.70625117,3195.4,3195.3,0.86846]
[1764844981677,2.70625117,3195.4,3195.3,1.61196]
[1764844982280,1.93445117,3195.4,3195.3,1.61196]
[1764844982881,2.70625117,3195.4,3195.3,1.61196]
[1764844983084,1.16635117,3195.4,3195.3,1.61196]
[1764844983276,0.81930042,3195.4,3195.3,6.22125058]
[1764844983484,3.2078,3195.9,3195.8,1.4555]
[1764844983684,3.55581883,3195.9,3195.8,1.4555]
[1764844984182,4.27101883,3195.9,3195.8,1.61194]
[1764844984481,4.27336883,3195.9,3195.8,1.6155739]
[1764844985880,1.06556883,3195.9,3195.8,1.6155739]
[1764844986385,0.35036883,3195.9,3195.8,1.6155739]
[1764844986680,0.00235,3195.9,3195.8,1.6155739]
[1764844988478,0.71755,3195.9,3195.8,1.6155739]
[1764844988985,0.35036883,3195.9,3195.8,1.6155739]
[1764844989188,0.71755,3195.9,3195.8,1.6155739]
[1764844989484,1.46515,3195.9,3195.8,1.6155739]
[1764844989677,0.71755,3195.9,3195.8,1.6155739]
[1764844993293,1.46515,3195.9,3195.8,1.6155739]
[1764844994694,1.46515,3195.9,3195.8,0.8720739]
[1764844994895,1.46515,3195.9,3195.8,0.1600739]
[1764844995090,1.81236813,3195.9,3195.8,0.1600739]
[1764844995496,2.62614843,3195.9,3195.8,0.1600739]
[1764844996896,5.83394843,3195.9,3195.8,0.1600739]
[1764844997398,5.4867303,3195.9,3195.8,0.1600739]
[1764844997694,5.4867303,3195.9,3195.8,1.6325739]
[1764844997901,0.8161303,3195.9,3195.8,1.6325739]
[1764844998198,0.00235,3195.9,3195.8,1.6325739]
[1764844999599,1.46515,3195.9,3195.8,1.6325739]
[1764845000701,2.27897022,3195.9,3195.8,1.6325739]
[1764845001404,1.53137022,3195.9,3195.8,1.6325739]
[1764845002602,0.81617022,3195.9,3195.8,1.6325739]
[1764845002996,0.00235,3195.9,3195.8,1.6325739]
[1764845003702,0.71755,3195.9,3195.8,1.6325739]
[1764845004804,0.00235,3195.9,3195.8,1.6325739]
[1764845006501,0.81651531,3195.9,3195.8,1.6325739]
[1764845006802,0.00235,3195.9,3195.8,1.6325739]
[1764845007204,0.81651531,3195.9,3195.8,1.6325739]
[1764845007398,1.46515,3195.9,3195.8,1.6325739]
[1764845007599,2.27931531,3195.9,3195.8,1.6325739]
[1764845008501,2.27931531,3195.9,3195.8,0.9020739]
[1764845008702,2.62698464,3195.9,3195.8,0.9020739]
[1764845008902,2.62698464,3195.9,3195.8,1.6325739]
[1764845009104,2.62698464,3195.9,3195.8,0.9020739]
[1764845009305,2.62698464,3195.9,3195.8,0.1600739]
[1764845011403,5.83478464,3195.9,3195.8,0.1600739]
[1764845012907,1.4628,3195.3,3195.2,2.03546]
[1764845013111,2.62619686,3195.3,3195.2,2.03546]
[1764845013410,1.4628,3195.1,3195.0,0.0046916]
[1764845013710,4.06210067,3195.1,3195.0,0.0046916]
[1764845014012,1.16339686,3195.1,3195.0,1.93414186]
[1764845014208,1.16339686,3195.1,3195.0,2.09062186]
[1764845014508,3.9397,3195.3,3195.2,1.4942]
[1764845014709,4.75431071,3195.3,3195.2,1.4942]
[1764845015008,45.55431071,3195.3,3195.2,1.4942]
[1764845015209,44.7397,3195.3,3195.2,1.4942]
[1764845019217,1.467,3195.1,3195.0,2.05002186]
[1764845020307,1.467,3195.1,3195.0,0.16422186]
[1764845021815,1.467,3195.1,3195.0,0.87282186]
[1764845022013,1.467,3195.1,3195.0,2.06612186]
[1764845028618,1.467,3195.1,3195.0,1.33342186]
[1764845029516,2.90290381,3195.1,3195.0,0.16422186]
[1764845030915,2.90290381,3195.1,3195.0,2.06612186]
[1764845031116,2.90290381,3195.1,3195.0,1.33342186]
[1764845032315,2.90290381,3195.1,3195.0,0.16422186]
[1764845036816,4.06475159,3195.1,3195.0,0.16422186]
[1764845038220,1.467,3194.5,3194.4,0.1565]
[1764845038422,1.467,3194.5,3194.4,1.5978]
[1764845038722,0.7022,3194.5,3194.4,1.5978]
[1764845039421,0.7022,3194.5,3194.4,1.60009941]
[1764845040322,0.7022,3194.9,3194.8,1.59779]
[1764845040623,1.467,3194.9,3194.8,1.59779]
[1764845041122,1.6975,3194.5,3194.4,0.00229941]
[1764845041422,6.06759425,3194.5,3194.4,0.00229941]
[1764845041726,1.467,3194.2,3194.1,0.0046916]
[1764845041916,3.71773733,3194.2,3194.1,0.0046916]
[1764845042519,3.71687248,3194.2,3194.1,0.0046916]
[1764845042718,3.71687248,3194.2,3194.1,0.00833113]
[1764845043315,2.90290381,3194.2,3194.1,0.00833113]
[1764845043622,3.71642795,3194.2,3194.1,0.00833113]
[1764845044328,4.06316478,3194.2,3194.1,0.00833113]
[1764845045015,1.4613,3193.4,3193.3,3.2078]
[1764845045215,1.4613,3193.4,3193.3,3.9261]
[1764845045926,1.46462356,3193.4,3193.3,3.93010201]
[1764845046116,1.46462356,3193.4,3193.3,4.85536201]
[1764845046319,2.90052737,3193.4,3193.3,0.16056201]
[1764845046520,6.10832737,3193.4,3193.3,0.87886201]
[1764845046921,6.10832737,3193.4,3193.3,0.16056201]
[1764845047125,6.10832737,3193.4,3193.3,0.87886201]
[1764845048024,6.10832737,3193.4,3193.3,0.16056201]
[1764845049327,1.4613,3192.7,3192.6,0.15659]
[1764845049529,2.89720381,3192.7,3192.6,0.15659]
[1764845049837,43.69720381,3192.7,3192.1,3.2078]
[1764845050121,43.70189541,3192.7,3192.0,0.4606]
[1764845050324,4.6691,3192.4,3192.3,1.487]
[1764845051327,1.4613,3192.1,3192.0,0.00345715]
[1764845051626,0.2711,3192.0,3191.2,4.6948]
[1764845051834,3.9377,3191.7,3191.6,1.487]
[1764845052036,41.5299,3191.7,3191.6,1.487]
[1764845052625,41.5299,3191.7,3191.6,0.00275239]
[1764845052826,41.5299,3191.7,3191.6,1.48975239]
[1764845053524,41.5299,3191.7,3191.6,0.72105239]
[1764845053721,41.5299,3191.7,3191.6,1.48975239]
[1764845055033,0.7299,3191.7,3191.6,1.48975239]
[1764845055834,1.4613,3191.7,3191.6,1.48975239]
[1764845056334,1.4613,3191.7,3191.6,0.72105239]
[1764845056930,1.4613,3191.7,3191.6,1.48975239]
[1764845057537,1.4613,3191.7,3191.6,0.72105239]
[1764845058130,1.4613,3191.7,3191.6,0.00275239]
[1764845058328,0.7299,3191.7,3191.6,1.48975239]
[1764845058528,3.2078,3191.8,3191.7,1.487]
[1764845058925,3.9377,3191.8,3191.7,1.487]
[1764845059433,1.4613,3191.7,3191.6,0.15939239]
[1764845059826,1.4613,3191.7,3191.6,0.00275239]
[1764845060029,1.4613,3191.1,3191.0,1.32197]
[1764845060229,1.43590381,3191.2,3190.5,1.934]
[1764845060434,3.9377,3191.4,3191.3,0.7183]
[1764845060634,3.9377,3191.4,3191.3,1.487]
[1764845060843,4.6691,3191.4,3191.3,1.487]
[1764845061036,0.00399477,3191.4,3191.3,1.49030549]
[1764845062141,0.00399477,3191.4,3191.3,1.64696549]
[1764845064444,0.73389477,3191.4,3191.3,1.64696549]
[1764845065940,0.00399477,3191.4,3191.3,1.64696549]
[1764845067634,0.73389477,3191.4,3191.3,1.64696549]
[1764845068645,0.00399477,3191.4,3191.3,1.64696549]
[1764845073553,0.67776538,3191.7,3191.3,1.49030549]
[1764845073755,3.2078,3192.2,3192.1,1.5331]
[1764845074147,3.9842,3192.2,3192.1,1.5331]
[1764845074449,4.7452,3192.2,3192.1,1.5331]
[1764845074653,4.748793,3192.2,3192.1,1.5331]
[1764845075347,3.987793,3192.2,3192.1,1.5331]
[1764845076247,4.3337604,3192.2,3192.1,1.5331]
[1764845076653,3.987793,3192.2,3192.1,1.5331]
[1764845077146,4.33402071,3192.2,3192.1,1.5331]
[1764845079250,3.55762071,3192.2,3192.1,1.5331]
[1764845079951,4.33402071,3192.2,3192.1,1.5331]
[1764845080453,3.55762071,3192.2,3192.1,1.5331]
[1764845080654,4.33602071,3192.2,3192.1,1.5331]
[1764845081155,5.11352071,3192.2,3192.1,1.5331]
[1764845081348,4.33602071,3192.2,3192.1,1.5331]
[1764845081549,5.11352071,3192.2,3192.1,0.7747]
[1764845081749,5.11352071,3192.2,3192.1,1.4858]
[1764845082045,4.33602071,3192.2,3192.1,1.4858]
[1764845083758,3.55762071,3192.2,3192.1,1.4858]
[1764845083954,4.33602071,3192.2,3192.1,1.64242]
[1764845084152,4.767293,3192.2,3192.1,0.93132]
[1764845084459,5.11420798,3192.2,3192.1,0.93132]
[1764845085763,5.91236747,3192.2,3192.1,0.93132]
[1764845086248,1.5559,3192.1,3191.5,3.83195]
[1764845086454,0.7784,3191.6,3191.5,5.29945]
[1764845087255,1.5559,3191.6,3191.5,5.29945]
[1764845087456,0.7784,3191.7,3191.6,0.91304]
[1764845087758,0.7784,3191.7,3191.6,1.62414]
[1764845087956,4.767293,3192.2,3192.1,0.7564]
[1764845088163,5.91219584,3192.2,3192.1,0.7564]
[1764845088466,4.35629584,3192.2,3192.1,1.4675]
[1764845089065,5.13469584,3192.2,3192.1,1.4675]
[1764845089368,5.13469584,3192.2,3192.1,1.62412]
[1764845089564,5.90880722,3192.2,3192.1,0.91302]
[1764845089764,5.90880722,3192.2,3192.1,1.62412]
[1764845091165,5.90880722,3192.2,3192.1,0.15662]
[1764845091467,5.90880722,3192.2,3192.1,0.91302]
[1764845091968,5.90880722,3192.2,3192.1,1.62412]
[1764845092963,5.90880722,3192.2,3192.1,0.91302]
[1764845093162,5.56198191,3192.2,3192.1,0.91302]
[1764845094262,4.767293,3192.2,3192.1,0.91302]
[1764845094657,3.2078,3192.6,3192.5,1.6241]
[1764845094960,3.2078,3192.6,3192.5,3.46012437]
[1764845095159,3.2078,3192.6,3192.5,2.0561]
[1764845095565,3.2078,3192.6,3192.5,3.46012437]
[1764845095761,0.0046916,3192.7,3192.6,1.62409]
[1764845095969,0.00798536,3192.7,3192.6,1.62409]
[1764845096367,0.1,3193.0,3192.9,1.62408]
[1764845097262,0.10328067,3193.0,3192.9,1.62408]
[1764845100575,4.7637,3193.5,3193.0,0.432]
[1764845100875,4.7637,3193.5,3193.4,1.62406]
[1764845101469,3.21164885,3193.5,3193.4,1.62406]
[1764845101668,4.76754885,3193.5,3193.4,0.91296]
[1764845102066,4.76754885,3193.5,3193.4,0.15656]
[1764845102466,4.76754885,3193.5,3193.4,0.91296]
[1764845102663,4.76754885,3193.5,3193.4,0.15656]
[1764845104769,3.99004885,3193.5,3193.4,1.67876]
[1764845104974,0.00469917,3193.8,3193.7,1.66304]
[1764845105879,0.00469917,3193.8,3193.7,4.87084]
[1764845106174,0.00827074,3193.8,3193.7,4.87445824]
[1764845106371,3.2078,3194.3,3194.2,1.66302]
[1764845106764,4.7335,3194.8,3194.7,1.5065]
[1764845106970,45.5335,3194.8,3194.7,1.5065]
[1764845107166,3.977,3194.8,3194.7,1.66299]
[1764845107371,3.97958879,3194.8,3194.7,1.66299]
[1764845107868,3.21038879,3194.8,3194.7,1.66299]
[1764845108378,0.00469917,3195.1,3195.0,2.11398]
[1764845108675,4.7335,3195.6,3195.5,1.9575]
[1764845108875,4.7335,3195.6,3195.5,1.1917]
[1764845108876,45.5335,3195.6,3195.5,1.1917]
[1764845109176,45.5335,3195.6,3195.5,1.9575]
[1764845109378,0.00358946,3195.6,3195.5,1.9575]
[1764845109872,0.00358946,3195.6,3195.5,2.11395]
[1764845110669,0.77278946,3195.6,3195.5,2.11395]
[1764845111173,1.52928946,3195.6,3195.5,0.15645]
[1764845111374,1.5257,3195.1,3195.0,1.9575]
[1764845111769,1.5257,3195.1,3195.0,1.1917]
[1764845112276,1.52928946,3195.6,3195.5,1.2168]
[1764845112473,1.5257,3195.1,3195.0,2.11398]
[1764845112678,0.7692,3195.1,3195.0,2.11398]
[1764845112877,0.7692,3195.2,3195.1,1.66297]
[1764845113082,1.52928946,3195.6,3195.5,0.7407]
[1764845113477,1.5257,3195.3,3195.2,1.66297]
[1764845114082,0.7692,3195.3,3195.2,1.66297]
[1764845114282,1.52928946,3195.6,3195.5,0.7407]
[1764845114484,1.52928946,3195.6,3195.5,1.1917]
[1764845114686,1.52928946,3195.6,3195.2,0.15647]
[1764845114687,1.5257,3195.3,3195.2,0.89717]
[1764845115284,1.5257,3195.3,3195.2,1.66297]
[1764845115677,1.5257,3195.3,3195.2,0.15647]
[1764845116983,4.7335,3195.3,3195.2,0.15647]
[1764845117379,4.7335,3195.3,3194.5,0.6075]
[1764845117586,0.7692,3194.6,3194.5,2.114]
[1764845118384,1.5257,3194.6,3194.5,0.1565]
[1764845119088,1.5257,3194.1,3194.0,3.2078]
[1764845119293,1.5257,3193.8,3193.7,0.90085824]
[1764845119491,3.2078,3194.1,3194.0,2.11403]
[1764845119791,1.5257,3194.5,3194.4,1.66301]
[1764845120188,1.5257,3194.5,3194.4,0.89721]
[1764845120387,0.7692,3194.5,3194.4,1.66301]
[1764845120696,0.00469917,3194.8,3194.7,1.5065]
[1764845120697,1.53039917,3194.8,3194.7,1.5065]
[1764845120891,1.53039917,3194.8,3194.7,0.7407]
[1764845121290,1.53039917,3194.8,3194.7,1.5065]
[1764845122089,1.5257,3194.7,3194.6,1.663]
[1764845122292,1.5257,3194.7,3194.6,0.8972]
[1764845122693,1.5257,3194.7,3194.6,1.663]
[1764845122889,1.5257,3194.7,3194.6,0.8972]
[1764845123498,1.5257,3194.7,3194.6,1.663]
[1764845124586,0.7692,3194.7,3194.6,1.663]
[1764845125689,0.7692,3194.7,3194.6,0.1565]
[1764845125690,1.5257,3194.7,3194.6,0.1565]
[1764845125889,1.5257,3194.7,3194.6,0.8972]
[1764845126088,1.5257,3194.2,3194.1,1.51119917]
[1764845126997,0.7692,3194.2,3194.1,1.66771917]
[1764845127288,1.5257,3194.2,3194.1,1.66771917]
[1764845127690,1.5257,3194.2,3194.1,0.90191917]
[1764845127999,1.5257,3194.2,3194.1,1.66771917]
[1764845130188,0.7692,3194.2,3194.1,1.66771917]
[1764845132500,1.5257,3194.2,3194.1,1.66771917]
[1764845133801,1.5257,3194.2,3194.1,0.16121917]
[1764845136300,1.87195857,3194.2,3194.1,0.00469917]
[1764845136504,1.4828,3193.8,3193.5,0.15655]
[1764845138011,44.0078,3193.9,3193.8,1.4142]
[1764845138815,40.8,3193.9,3193.8,1.57074]
[1764845139700,40.8,3193.9,3193.8,0.86824]
[1764845139906,40.8,3193.9,3193.8,0.15654]
[1764845140811,44.0078,3193.9,3193.8,0.15654]
[1764845154009,44.0078,3193.9,3193.7,0.00361824]
[1764845154210,1.4738,3193.8,3193.7,0.00361824]
[1764845158222,4.6816,3193.8,3193.7,0.00361824]
[1764845160417,4.6816,3193.8,3193.7,0.74011824]
[1764845161228,5.02856386,3193.8,3193.7,0.00361824]
[1764845161817,1.7724,3193.5,3193.4,0.00469917]
[1764845162827,1.7724,3193.5,3193.4,0.00710265]
[1764845163229,2.11956265,3193.5,3193.4,0.00710265]
[1764845163525,2.88957002,3193.5,3193.4,0.00710265]
[1764845163923,1.4886,3193.1,3193.0,0.15657]
[1764845164732,1.4886,3192.2,3192.1,0.7741]
[1764845164932,0.0039618,3192.2,3192.1,0.00344433]
[1764845165230,42.2925618,3192.2,3192.1,0.00344433]
[1764845165731,42.2925618,3192.2,3192.1,1.49034433]
[1764845165929,1.4925618,3192.2,3192.1,1.49034433]
[1764845166232,1.4925618,3192.2,3192.1,0.00344433]
[1764845168732,1.4886,3191.9,3191.8,0.00469917]
[1764845169129,4.6964,3191.9,3191.8,0.00469917]
[1764845169733,4.6964,3191.9,3191.8,0.00798974]
[1764845173827,4.6964,3191.9,3191.8,0.78208974]
[1764845174035,4.6964,3191.9,3191.8,0.00798974]
[1764845175534,4.6964,3191.9,3191.8,0.78208974]
[1764845176138,4.6964,3191.9,3191.8,1.49488974]
[1764845176338,6.13521946,3191.9,3191.8,0.00798974]
[1764845176542,3.9518,3191.9,3191.8,1.65151974]
[1764845176743,4.6964,3191.9,3191.8,1.65151974]
[1764845177243,4.6964,3191.9,3191.8,0.16461974]
[1764845178947,4.6964,3191.9,3191.8,0.00798974]
[1764845181849,1.4886,3191.1,3191.0,0.7741]
[1764845182052,2.92741946,3191.1,3191.0,0.7741]
[1764845182547,1.4886,3190.9,3190.8,4.6947]
[1764845182750,0.744,3190.9,3190.8,4.6947]
[1764845182949,0.744,3190.9,3190.8,4.69764661]
[1764845183156,1.4886,3190.9,3190.8,0.93372661]
[1764845183352,1.4886,3190.9,3190.8,0.15962661]
[1764845183546,1.4886,3190.9,3190.8,0.93372661]
[1764845183950,1.4886,3190.9,3190.8,1.64652661]
[1764845184256,1.4886,3190.9,3190.8,0.93372661]
[1764845185056,1.4886,3190.9,3190.8,0.00294661]
[1764845185057,2.92741946,3190.9,3190.8,0.00294661]
[1764845186451,1.4886,3190.9,3190.8,0.00294661]
[1764845186851,1.4886,3190.9,3190.4,0.1567]
[1764845186852,1.9095,3190.5,3190.4,0.1567]
[1764845187050,1.4886,3190.1,3190.0,5.1618]
[1764845187248,0.744,3190.1,3190.0,5.1618]
[1764845188059,0.744,3190.1,3190.0,5.16439469]
[1764845188258,0.744,3190.1,3190.0,5.32111469]
[1764845189060,40.8,3190.4,3190.3,0.7741]
[1764845189560,40.8,3190.4,3190.3,1.4869]
[1764845189759,40.8,3190.4,3190.3,1.64361]
[1764845190158,3.2078,3190.5,3190.4,1.6436]
[1764845193664,0.00469917,3190.8,3190.7,0.93079]
[1764845193868,0.00469917,3190.8,3190.7,1.68629]
[1764845194463,0.00469917,3190.8,3190.7,7.68629]
[1764845194666,1.54599917,3190.8,3190.7,1.68629]
[1764845194972,0.77859917,3190.8,3190.7,1.68629]
[1764845196973,0.00469917,3190.8,3190.7,1.68629]
[1764845204977,3.2078,3191.5,3191.4,0.86475]
[1764845205182,4.6571,3191.5,3191.4,1.59795]
[1764845205882,3.9541,3191.5,3191.4,1.59795]
[1764845206385,4.6571,3191.5,3191.4,1.59795]
[1764845207084,3.9541,3191.5,3191.4,1.59795]
[1764845207584,3.2078,3191.5,3191.4,1.59795]
[1764845207782,0.00469917,3191.8,3191.7,1.59794]
[1764845207981,1.45399917,3191.8,3191.7,1.59794]
[1764845208179,42.25399917,3191.8,3191.7,0.86474]
[1764845208683,1.45399917,3191.8,3191.7,0.86474]
[1764845208979,1.45399917,3191.8,3191.7,1.59794]
[1764845209180,1.45399917,3191.8,3191.7,0.86474]
[1764845209576,1.45399917,3191.8,3191.7,1.59794]
[1764845210179,1.45399917,3191.8,3191.7,0.86474]
[1764845210482,1.45399917,3191.8,3191.7,1.59794]
[1764845210687,0.75099917,3191.8,3191.7,1.59794]
[1764845210891,0.00469917,3191.8,3191.7,1.59794]
[1764845216292,0.75099917,3191.8,3191.7,1.59794]
[1764845216795,1.45399917,3191.8,3191.7,1.59794]
[1764845217087,0.75099917,3191.8,3191.7,1.59794]
[1764845220089,0.00469917,3191.8,3191.7,1.59794]
[1764845220694,0.75099917,3191.8,3191.7,1.59794]
[1764845222695,1.45399917,3191.8,3191.7,1.59794]
[1764845222987,0.75099917,3191.8,3191.7,1.59794]
[1764845223693,1.45399917,3191.8,3191.7,1.59794]
[1764845224388,1.45399917,3191.8,3191.7,0.86474]
[1764845224589,1.45399917,3191.8,3191.7,0.15664]
[1764845225588,1.45399917,3191.8,3191.7,0.88164]
[1764845226784,0.00469917,3191.8,3191.7,1.58984]
[1764845226988,1.44739917,3191.8,3191.7,0.15664]
[1764845227193,1.79392179,3191.8,3191.7,0.15664]
[1764845227395,1.79392179,3191.8,3191.0,0.4531]
[1764845227695,1.4427,3191.3,3191.2,0.15666]
[1764845228896,1.4427,3191.3,3191.2,0.88166]
[1764845229098,1.4427,3191.3,3191.2,0.15666]
[1764845230798,1.4427,3191.3,3191.2,1.58986]
[1764845231592,0.727,3191.3,3191.2,1.58986]
[1764845232200,1.4427,3191.3,3191.2,1.58986]
[1764845232801,0.727,3191.3,3191.2,1.58986]
[1764845232993,3.2078,3191.7,3191.3,1.58986]
[1764845233198,1.4427,3191.4,3191.3,1.58986]
[1764845236002,1.4427,3191.4,3191.3,0.88166]
[1764845237100,1.4427,3191.4,3191.3,0.15666]
[1764845238400,1.4427,3190.8,3190.7,0.15669]
[1764845238704,1.4427,3190.8,3190.7,1.58989]
[1764845241302,1.4427,3190.8,3190.7,0.88169]
[1764845242206,1.4427,3190.8,3190.7,1.58989]
[1764845242905,1.4427,3190.8,3190.7,0.88169]
[1764845243303,1.4427,3190.8,3190.7,1.58989]
[1764845243705,1.4427,3190.8,3190.7,0.15669]
[1764845244108,0.727,3190.8,3190.7,1.58989]
[1764845244309,1.4427,3190.8,3190.7,1.58989]
[1764845244500,0.727,3190.8,3190.7,1.58989]
[1764845244804,1.4427,3190.1,3190.0,0.00259469]
[1764845245008,6.05522142,3190.1,3190.0,0.00259469]
[1764845245208,46.85522142,3190.1,3190.0,0.00259469]
[1764845245603,6.05522142,3190.1,3190.0,0.00259469]
[1764845245809,6.05522142,3190.1,3190.0,0.72759469]
[1764845246206,46.85522142,3190.1,3190.0,0.00259469]
[1764845247407,1.4427,3189.7,3189.6,1.58994]
[1764845248416,1.44553375,3189.7,3189.6,1.59366779]
[1764845250214,0.72983375,3189.7,3189.6,1.59366779]
[1764845251510,0.00283375,3189.7,3189.6,1.59366779]
[1764845251811,0.00283375,3189.7,3189.6,3.03546024]
[1764845254021,0.00283375,3189.7,3189.6,1.59366779]
[1764845255718,0.00469917,3190.0,3189.9,1.58373]
[1764845256814,0.0084944,3190.0,3189.9,1.58373]
[1764845259225,3.2078,3190.5,3190.4,1.6024]
[1764845260231,3.21005975,3190.5,3190.4,1.6024]
[1764845262531,0.00225975,3190.5,3190.4,1.6024]
[1764845265332,3.08623213,3190.8,3190.7,1.65929]
[1764845265541,4.55663213,3190.8,3190.7,1.65929]
[1764845265839,3.84873213,3190.8,3190.7,1.65929]
[1764845266135,3.08623213,3190.8,3190.7,1.65929]
[1764845266336,3.08920267,3190.8,3190.7,1.65929]
[1764845267236,4.55960267,3190.8,3190.7,1.65929]
[1764845267435,6.00139512,3190.8,3190.7,0.90039]
[1764845267630,6.00139512,3190.8,3190.7,0.15669]
[1764845268134,6.00139512,3190.8,3190.7,0.90339]
[1764845269433,6.00139512,3190.8,3190.7,0.15669]
[1764845270937,6.00139512,3190.8,3190.7,0.90339]
[1764845271442,6.00139512,3190.8,3190.7,0.15669]
[1764845272439,4.55960267,3190.8,3190.7,1.66229]
[1764845272627,3.08920267,3190.8,3190.7,1.66229]
[1764845273231,3.85170267,3190.8,3190.7,1.66229]
[1764845274040,4.55960267,3190.8,3190.7,1.66229]
[1764845274431,4.55960267,3190.8,3190.7,0.90339]
[1764845274629,4.55960267,3190.8,3190.7,1.66229]
[1764845276037,3.85170267,3190.8,3190.7,1.66229]
[1764845276228,4.55960267,3190.8,3190.7,1.66229]
[1764845276834,4.55960267,3190.8,3190.7,0.15669]
[1764845278840,4.55960267,3190.8,3190.7,0.90339]
[1764845279144,4.55960267,3190.8,3190.7,1.66229]
[1764845280235,3.85170267,3190.8,3190.7,1.66229]
[1764845280441,3.08920267,3190.8,3190.7,1.66229]
[1764845280641,3.85170267,3190.8,3190.7,1.66229]
[1764845280936,4.55960267,3190.8,3190.7,0.15669]
[1764845281137,6.00139512,3190.8,3190.7,0.15669]
[1764845281642,4.55960267,3190.8,3190.7,0.15669]
[1764845282746,1.47337054,3190.8,3190.7,0.15669]
[1764845283045,4.68117054,3190.8,3190.7,0.15669]
[1764845286045,5.0283539,3190.8,3190.7,0.15669]
[1764845287149,5.0283539,3190.8,3190.7,0.90989]
[1764845287547,4.68117054,3190.8,3190.7,1.68069]
[1764845287747,3.21077054,3190.8,3190.7,1.68069]
[1764845292259,3.94037054,3190.8,3190.7,1.68069]
[1764845292458,1.31412213,3192.2,3192.1,0.74602]
[1764845292655,1.1864,3192.5,3192.1,1.44179245]
[1764845292861,1.1864,3192.5,3191.7,3.2078]
[1764845292862,1.4795,3192.4,3192.3,0.15661]
[1764845293558,1.48302095,3192.4,3192.3,0.15887895]
[1764845294652,1.48302095,3192.4,3192.0,0.00469917]
[1764845294653,1.4795,3192.1,3192.0,0.00469917]
[1764845294849,1.4795,3191.7,3191.6,0.15664]
[1764845295849,1.4795,3191.4,3191.3,3.2078]
[1764845296054,1.4795,3191.4,3191.3,3.21027446]
[1764845296554,1.4795,3191.4,3191.3,0.00247446]
[1764845298258,2.92129245,3191.4,3191.3,0.00247446]
[1764845301164,6.12909245,3191.4,3191.3,0.00247446]
[1764845306366,1.4795,3191.1,3191.0,0.00469917]
[1764845306571,2.92129245,3191.1,3191.0,0.00469917]
[1764845306769,1.4795,3191.1,3191.0,0.00469917]
[1764845307063,1.4795,3191.1,3191.0,1.52869917]
[1764845307269,1.4795,3191.1,3191.0,1.97419917]
[1764845307464,1.4795,3191.1,3191.0,1.97722224]
[1764845308376,1.4795,3191.1,3191.0,2.13389224]
[1764845308572,4.6873,3191.4,3191.3,0.7532]
[1764845308764,0.7296,3191.1,3191.0,2.13389224]
[1764845309367,40.8,3191.3,3191.2,1.524]
[1764845309560,0.7296,3191.3,3191.2,1.68066]
[1764845309766,4.6873,3191.8,3191.7,0.7532]
[1764845309966,45.4873,3191.8,3191.7,0.7532]
[1764845310170,0.7296,3191.4,3191.3,1.68066]
[1764845310867,44.0078,3191.8,3191.4,0.15665]
[1764845311066,44.0078,3191.8,3191.7,0.7532]
[1764845311374,1.4795,3191.5,3191.4,0.90985]